Cogmind - Beta 11 X7 @@@ ROGUE MODE // 2021.09.18 @ 15:14:46 Player: Stryker Result: Self-destructed Performance ------------- Evolutions (4) 2000 Regions Visited (10) 2000 Robots Destroyed (104) 520 Value Destroyed (2612) 2612 Prototype IDs (17) 340 Alien Tech Used (0) 0 Bonus (312) 312 TOTAL SCORE: 7784 Bonus ------- High Alert Combat Kills 12 Met Data Miner 300 Cogmind --------- Core Integrity 621/850 Matter 127/300 Energy 98/125 System Corruption 0% Temperature Cool (0) Movement Flying (29) Location -6/Factory Parts ------- > --- POWER (1) -------- Light Ion Engine > --- PROPULSION (4) --- Improved VTOL Module Improved VTOL Module Cooled Cesium-ion Thruster > --- UTILITY (8) ------ Medium Storage Unit Machine Analyzer Advanced Sensor Array Advanced Signal Interpreter Hacking Suite Hacking Suite System Shield > --- WEAPON (2) ------- (None) > --- INVENTORY (10) --- Improved VTOL Module Cooled VTOL Module Structural Scanner Improved Sensor Array Improved Propulsion Shielding EM Shield System Shield Component Analysis Suite Heavy Ion Cannon Mini Grenade Launcher Peak State ------------ > --- POWER ------------ Light Deuterium Engine > --- PROPULSION ------- Improved VTOL Module Improved VTOL Module Improved VTOL Module Improved VTOL Module > --- UTILITY ---------- Medium Storage Unit Machine Analyzer Improved Sensor Array Advanced Signal Interpreter Hacking Suite Hacking Suite Hacking Suite System Shield > --- WEAPON ----------- Heavy Ion Cannon Chainsword > --- INVENTORY -------- Improved VTOL Module Cooled VTOL Module Structural Scanner Improved Propulsion Shielding EM Shield Component Analysis Suite Drone Bay Mini Grenade Launcher [Rating: 53] Favorites ----------- Power Nuclear Core Engine Light Deuterium Engine Power Core Nuclear Core Propulsion Improved VTOL Module Treads Advanced Treads Leg Aluminum Leg Wheel Wheel Flight Unit Improved VTOL Module Utility Huge Storage Unit Device Coolant Injector Storage Huge Storage Unit Processor Improved Signal Interpreter Hackware Hacking Suite Protection Light Armor Plating Weapon Light Assault Rifle Energy Gun Pulse Rifle Energy Cannon EM Pulse Cannon Ballistic Gun Light Assault Rifle Ballistic Cannon Flak Cannon Launcher Mini Grenade Launcher Impact Weapon Powered Hammer Slashing Weapon Axe Build | -11 -10 -10 -9 -8 -7 -7 -7 -7 -6 -6 ------- Run | Scr Mat Min Mat Mat Fac Low Low Dat Pro Fac Slots Evolved 8 | . . . 2 2 2 . . . . 2 Power . | . . . . . . . . . . . Propulsion 2 | . . . 1 1 . . . . . . Utility 6 | . . . 1 1 2 . . . . 2 Weapon . | . . . . . . . . . . . Parts Attached 155 | 1 14 7 22 45 27 5 3 5 6 20 Power 8 | . . 1 1 3 1 . . . . 2 Engine 6 | . . 1 . 2 1 . . . . 2 Core 2 | . . . 1 1 . . . . . . Reactor . | . . . . . . . . . . . Propulsion 42 | . 6 2 11 17 5 . . . . 1 Treads 22 | . 3 1 7 11 . . . . . . Leg . | . . . . . . . . . . . Wheel 13 | . 3 1 4 5 . . . . . . Hover . | . . . . . . . . . . . Flight 7 | . . . . 1 5 . . . . 1 Utility 59 | 1 5 2 6 13 14 2 1 1 1 13 Device 26 | 1 1 . 1 5 6 1 1 . 1 9 Storage 6 | . 2 1 . 2 1 . . . . . Processor 3 | . . . . 1 . . . . . 2 Hackware 4 | . . . . . 2 . . . . 2 Protection 20 | . 2 1 5 5 5 1 . 1 . . Artifact . | . . . . . . . . . . . Weapon 46 | . 3 2 4 12 7 3 2 4 5 4 Energy Gun 3 | . . . . 3 . . . . . . Energy Cannon 6 | . . . . 1 . . 1 . 2 2 Ballistic Gun 20 | . 3 2 4 5 3 1 . 2 . . Ballistic Cannon 1 | . . . . . 1 . . . . . Launcher 4 | . . . . 2 . . . . 2 . Special Weapon . | . . . . . . . . . . . Impact Weapon 3 | . . . . 1 2 . . . . . Slashing Weapon 9 | . . . . . 1 2 1 2 1 2 Piercing Weapon . | . . . . . . . . . . . Special Melee Weapon . | . . . . . . . . . . . Unidentified Prototypes 3 | . . . . 2 . . . . . 1 Parts Lost 21 | . . 3 3 9 . . . 2 . 4 Power 3 | . . 1 . . . . . 1 . 1 Propulsion 5 | . . 1 1 2 . . . . . 1 Utility 8 | . . 1 1 5 . . . . . 1 Weapon 5 | . . . 1 2 . . . 1 . 1 Highest Loss Streak 4 | . . 3 1 4 . . . 2 . 3 Average Slot Usage (%) 95 | . 100 99 99 97 91 92 94 92 86 83 Engine 6 | . 14 13 3 3 7 7 7 7 . 2 Core 2 | . . . 7 5 . . . . . . Treads 15 | . 12 14 22 25 4 . . . . . Leg 1 | . 6 . . . . . . . . . Wheel 7 | . 8 13 10 8 2 . . . . . Flight 7 | . . . . . 20 30 30 30 30 26 Device 9 | . 5 . . 13 12 14 15 15 14 10 Storage 9 | . 14 14 11 9 7 7 7 7 7 6 Processor 3 | . . . . 3 7 7 7 7 7 10 Hackware 4 | . . . . . 14 15 15 15 15 19 Protection 8 | . 8 13 21 9 2 . . . . . Energy Gun 1 | . . . . 5 1 . . . . . Energy Cannon 1 | . . . . 2 . . . . 2 . Ballistic Gun 13 | . 28 28 21 9 . 4 7 2 . . Slashing Weapon 1 | . . . . . 4 2 . 5 6 4 Naked Turns . | . . . . . . . . . . . Heaviest Build 110 | 13 51 88 97 110 110 20 21 20 22 20 Greatest Support 90 | 20 43 16 16 90 28 20 20 20 20 21 Greatest Overweight (x) 10 | . 5 5 9 10 3 . 1 . 4 4 Average Overweight (x) 2 | . 2 3 5 7 . . . . . . Largest Inventory Capacity 25 | 8 20 25 25 25 25 10 10 10 10 10 Average Capacity 19 | 8 18 22 25 24 14 10 10 10 10 10 Most Carried 25 | 8 20 25 25 25 25 10 10 10 10 10 Average Carried 19 | 7 17 20 24 24 14 9 9 9 8 9 Final Capacity 25 | 8 20 25 25 25 10 10 10 10 10 10 Final Carried 25 | 8 20 24 25 25 10 10 10 10 9 10 Class Distribution -------------------- 66% | Mutant 13% | Hacker-Scout 11% | Hacker-Assassin 4% | Scavenger-Mutant Dominant Class ---------------- Mutant | -10/Materials Mutant | -10/Mines Mutant | -9/Materials Mutant | -8/Materials Hacker-Scout | -7/Factory Hacker-Scout | -7/Lower Caves Hacker-Scout | -7/Lower Caves Hacker-Scout | -7/Data Miner Hacker-Assassin | -6/Proximity Caves Hacker-Scout | -6/Factory Resources | -11 -10 -10 -9 -8 -7 -7 -7 -7 -6 -6 ----------- Run | Scr Mat Min Mat Mat Fac Low Low Dat Pro Fac Matter Collected 3214 | 216 416 151 600 1317 262 32 50 . 115 55 Remotely 34 | 14 20 . . . . . . . . . Salvage Created 3922 | 83 463 153 867 1876 90 32 . . 257 101 Parts 233 | 5 26 12 65 114 2 . . . 2 7 Haulers Intercepted 10 | . 1 . 3 6 . . . . . . Recyclers Shooed . | . . . . . . . . . . . Parts Field Recycled . | . . . . . . . . . . . Retrieved Matter . | . . . . . . . . . . . Parts Self-Destructed 1 | . . . . . . . . . 1 . Prevented . | . . . . . . . . . . . Kills | -11 -10 -10 -9 -8 -7 -7 -7 -7 -6 -6 ------- Run | Scr Mat Min Mat Mat Fac Low Low Dat Pro Fac Combat Hostiles Destroyed 68 | . 6 8 16 34 2 . . . . 2 Melee 2 | . . . . . . . . . . 2 Guns 52 | . 6 8 16 21 1 . . . . . Cannons 5 | . . . . 4 1 . . . . . AOE 8 | . . . . 8 . . . . . . Classes Destroyed 13 | 2 5 . 2 2 1 . . . . 1 Worker 5 | . . . 1 2 . . . . . 2 Builder 1 | . . . . 1 . . . . . . Tunneler 1 | 1 . . . . . . . . . . Hauler 10 | . 1 . 3 6 . . . . . . Recycler 4 | 1 2 . 1 . . . . . . . Mechanic 1 | . . . . . . . . . . 1 Operator 4 | . 1 . 1 2 . . . . . . Watcher 10 | . 2 . 4 4 . . . . . . Swarmer 26 | . 2 6 9 7 . . . . . 2 Grunt 25 | . 4 2 2 17 . . . . . . Sentry 13 | . . . 5 8 . . . . . . Hunter 3 | . . . . 2 1 . . . . . Programmer 1 | . . . . . 1 . . . . . Best Kill Streak 7 | 2 3 3 4 7 1 . . . . 2 Combat Bots Only 7 | . 3 3 4 7 1 . . . . 2 Max Kills in Single Turn 2 | 1 1 1 2 2 1 . . . . 1 Gunslinging 1 | . . . 1 1 . . . . . . Exploded 1 | . . . . 1 . . . . . . Melee 1 | . . . . . . . . . . 1 Uniques/NPCs Destroyed . | . . . . . . . . . . . Combat | -11 -10 -10 -9 -8 -7 -7 -7 -7 -6 -6 -------- Run | Scr Mat Min Mat Mat Fac Low Low Dat Pro Fac Damage Taken 4435 | . 380 401 796 2151 69 55 . 140 . 443 Core 715 | . 68 8 148 242 . 20 . . . 229 Absorbed by Shields 114 | . . . . 114 . . . . . . Core Remaining (%) 77 | 100 . 69 63 56 . . . . 97 . Volleys Fired 342 | 3 44 34 82 141 4 . 8 . 21 5 Largest 2 | 2 2 2 2 2 2 . 1 . 1 1 Hottest 94 | 40 40 40 46 91 94 . 65 . 65 65 Shots Fired 618 | 6 88 68 164 250 8 . 8 . 21 5 Gun 520 | 6 88 68 164 190 4 . . . . . Cannon 84 | . . . . 48 4 . 8 . 19 5 Launcher 14 | . . . . 12 . . . . 2 . Special . | . . . . . . . . . . . Kinetic 493 | 6 88 68 164 161 6 . . . . . Thermal 61 | . . . . 29 . . 8 . 19 5 Explosive 14 | . . . . 12 . . . . 2 . Electromagnetic 50 | . . . . 48 2 . . . . . Robot Hit Streak 29 | 2 8 13 22 27 29 . . . . . Robot Miss Streak 3 | 1 3 3 3 3 3 . . . . . Penetration Max . | . . . . . . . . . . . Secondary Targets 2 | . . . 1 1 . . . . . . Max Gunslinging Chain 1 | . . . 1 1 . . . . . . Shots Hit Robots 445 | 4 58 47 118 189 7 2 . 1 7 12 Core Hits 184 | 4 26 16 41 82 6 . . . 5 4 Critical Kills . | . . . . . . . . . . . Critical Parts Destroyed 2 | . . . 2 . . . . . . . Critical Strikes 4 | . . . 3 1 . . . . . . Burn 1 | . . . . 1 . . . . . . Destroy 3 | . . . 3 . . . . . . . Melee Attacks 97 | . . . . 7 32 5 3 8 14 28 Impact 7 | . . . . 7 . . . . . . Slashing 90 | . . . . . 32 5 3 8 14 28 Piercing . | . . . . . . . . . . . Sneak Attacks 6 | . . . . . . . . 1 . 5 Combat Hostiles . | . . . . . . . . . . . Follow-up Attacks . | . . . . . . . . . . . Damage Inflicted 8968 | 34 559 353 1540 4531 135 263 . 115 664 774 Guns 4774 | 34 559 353 1540 2202 86 . . . . . Cannons 1138 | . . . . 1089 49 . . . . . Explosions 1267 | . . . . 1240 . . . . 27 . Melee 1789 | . . . . . . 263 . 115 637 774 Ramming . | . . . . . . . . . . . Kinetic 4338 | 34 559 353 1540 1752 100 . . . . . Thermal 895 | . . . . 895 . . . . . . Explosive 822 | . . . . 795 . . . . 27 . Electromagnetic 1124 | . . . . 1089 35 . . . . . Impact . | . . . . . . . . . . . Slashing 1789 | . . . . . . 263 . 115 637 774 Piercing . | . . . . . . . . . . . Highest Corruption . | . . . . . . . . . . . Average Corruption . | . . . . . . . . . . . Corruption Purged . | . . . . . . . . . . . Overload Shots . | . . . . . . . . . . . Overflow Damage 722 | . . . . 25 . 197 . . 168 332 Projectiles 10 | . . . . 10 . . . . . . Explosions 15 | . . . . 15 . . . . . . Melee 697 | . . . . . . 197 . . 168 332 Knockbacks 3 | . . . . . 3 . . . . . Impact . | . . . . . . . . . . . Kinetic 3 | . . . . . 3 . . . . . Secondary . | . . . . . . . . . . . Self-Inflicted Damage 188 | . . . . 188 . . . . . . Shots 5 | . . . . 5 . . . . . . Rammed . | . . . . . . . . . . . Targets Rammed . | . . . . . . . . . . . Kicked . | . . . . . . . . . . . Crushed . | . . . . . . . . . . . Highest Temperature 199 | . 37 35 31 199 66 2 128 . 4 30 Average Temperature 34 | . 12 8 9 61 24 1 63 . 3 13 Received Heat Transfer 1379 | . 171 129 183 800 . 27 . 18 . 51 Siege Activations . | . . . . . . . . . . . Robots Corrupted 1 | . . . . 1 . . . . . . Combat Hostiles 1 | . . . . 1 . . . . . . Parts Fried 9 | . . . . 9 . . . . . . Impact Corruptions . | . . . . . . . . . . . Robots Melted . | . . . . . . . . . . . Combat Hostiles . | . . . . . . . . . . . Parts Melted 1 | . . . . 1 . . . . . . Heat Transferred 1586 | . . . . 1586 . . . . . . Parts Sabotaged . | . . . . . . . . . . . Parts Stolen . | . . . . . . . . . . . Parts Stripped . | . . . . . . . . . . . Power Chain Reactions 6 | . . . . 6 . . . . . . Missiles Intercepted . | . . . . . . . . . . . Alert | -11 -10 -10 -9 -8 -7 -7 -7 -7 -6 -6 ------- Run | Scr Mat Min Mat Mat Fac Low Low Dat Pro Fac Peak Influence 491 | 10 145 105 258 391 417 . . . . 491 Initial 175 | . 6 . 27 66 175 . . . . . Average 157 | 6 22 64 116 259 232 . . . . 42 Maximum Alert Level 2 | . . . 1 1 2 . . . . 2 Low Security (%) 63 | 100 100 100 82 28 46 . . . . 92 Level 1 34 | . . . 17 71 42 . . . . . Level 2 1 | . . . . . 11 . . . . 7 Level 3 . | . . . . . . . . . . . Level 4 . | . . . . . . . . . . . Level 5 . | . . . . . . . . . . . High Security . | . . . . . . . . . . . Max Security . | . . . . . . . . . . . Squads Dispatched 18 | . 2 . 2 7 4 . . . . 3 Investigation 4 | . 1 . . 2 . . . . . 1 Extermination 2 | . . . . . 2 . . . . . Reinforcement 9 | . 1 . 2 2 2 . . . . 2 Assault . | . . . . . . . . . . . Garrison 3 | . . . . 3 . . . . . . Intercept . | . . . . . . . . . . . Construction Impeded . | . . . . . . . . . . . Haulers Reinforced . | . . . . . . . . . . . Active Scanning Responses . | . . . . . . . . . . . Cargo Convoy Interrupts 1 | . . . . . . . . . . 1 Stealth | -11 -10 -10 -9 -8 -7 -7 -7 -7 -6 -6 --------- Run | Scr Mat Min Mat Mat Fac Low Low Dat Pro Fac Distress Signals 5 | . 1 . 2 1 . . . . . 1 Communications Jammed . | . . . . . . . . . . . Distress Signals . | . . . . . . . . . . . Times Spotted 165 | . 24 8 36 58 12 6 . 4 1 16 Peak Tracking Total 11 | . 4 3 4 6 5 3 . 4 1 11 Tactical Retreats 14 | . 1 . 3 3 1 3 . . 1 2 Traps | -11 -10 -10 -9 -8 -7 -7 -7 -7 -6 -6 ------- Run | Scr Mat Min Mat Mat Fac Low Low Dat Pro Fac Traps Triggered 4 | . 1 . 1 1 . . . . . 1 Indirectly . | . . . . . . . . . . . Trap Hack Attempts . | . . . . . . . . . . . Triggered . | . . . . . . . . . . . Disarmed . | . . . . . . . . . . . Reprogrammed . | . . . . . . . . . . . Reused . | . . . . . . . . . . . Traps Extracted . | . . . . . . . . . . . Installed . | . . . . . . . . . . . Triggered 3 | . . . . . . . . . 1 2 Machines | -11 -10 -10 -9 -8 -7 -7 -7 -7 -6 -6 ---------- Run | Scr Mat Min Mat Mat Fac Low Low Dat Pro Fac Machines Disabled 6 | . . . . 4 . . . 1 . 1 Max in Single Turn 2 | . . . . 2 . . . 1 . 1 Garrison Access 3 | . . . . 1 2 . . . . . Machines Sabotaged . | . . . . . . . . . . . Garrisons Compromised 1 | . . . . . . . . . . 1 Overloaded Fab Kills . | . . . . . . . . . . . Fab Network Shutdowns 1 | . . . . . 1 . . . . . Hacking | -11 -10 -10 -9 -8 -7 -7 -7 -7 -6 -6 --------- Run | Scr Mat Min Mat Mat Fac Low Low Dat Pro Fac Machines Accessed 50 | . 8 . 9 11 13 . . 4 . 5 Terminals 30 | . 6 . 6 5 8 . . . . 5 Fabricators 1 | . . . . . 1 . . . . . Repair Stations 4 | . . . 2 2 . . . . . . Recycling Units 5 | . 2 . . 2 1 . . . . . Scanalyzers 3 | . . . 1 1 1 . . . . . Garrison Access 3 | . . . . 1 2 . . . . . Total Hacks 173 | . 29 . 34 34 38 . . 23 . 15 Successful 113 | . 19 . 21 18 22 . . 23 . 10 Failed 59 | . 9 . 13 16 16 . . . . 5 Catastrophic 7 | . 1 . . 4 2 . . . . . Database Lockouts 1 | . 1 . . . . . . . . . Manual 71 | . 17 . 19 7 16 . . . . 12 Terminals 113 | . 26 . 26 17 29 . . . . 15 Fabricators 4 | . . . . . 4 . . . . . Repair Stations 9 | . . . 5 4 . . . . . . Recycling Units 7 | . 3 . . 3 1 . . . . . Scanalyzers 13 | . . . 3 8 2 . . . . . Garrison Access 4 | . . . . 2 2 . . . . . Terminal Hacks 59 | . 10 . 7 3 11 . . 23 . 5 Record 11 | . . . . . . . . 11 . . Part Schematic 5 | . 1 . . . . . . 3 . 1 Robot Schematic 6 | . . . . . . . . 6 . . Robot Analysis 2 | . . . 2 . . . . . . . Prototype ID Bank 5 | . 1 . 1 . . . . 3 . . Branch Access Points 3 | . . . 1 . 1 . . . . 1 Scanalyzer Index 1 | . . . . . . . . . . 1 Alert Level 3 | . 2 . 1 . . . . . . . Unreport Threat 6 | . 1 . . 2 1 . . . . 2 Locate Traps 12 | . 3 . 2 1 6 . . . . . Recall Reinforcements 1 | . 1 . . . . . . . . . Hauler Manifests 1 | . 1 . . . . . . . . . Registered Prototypes 1 | . . . . . 1 . . . . . Zone Layout 2 | . . . . . 2 . . . . . Fabricator Hacks 4 | . . . . . 4 . . . . . Load Schematic 1 | . . . . . 1 . . . . . Build 3 | . . . . . 3 . . . . . Repair Station Hacks 8 | . . . 4 4 . . . . . . Scan Component 4 | . . . 2 2 . . . . . . Repair 4 | . . . 2 2 . . . . . . Recycling Unit Hacks . | . . . . . . . . . . . Scanalyzer 12 | . . . 3 7 2 . . . . . Insert Component 7 | . . . 2 4 1 . . . . . Analyze 5 | . . . 1 3 1 . . . . . Garrison Access Hacks 3 | . . . . 1 2 . . . . . Seal Access 3 | . . . . 1 2 . . . . . Unauthorized Hacks 27 | . 9 . 7 3 3 . . . . 5 Terminals 22 | . 7 . 7 1 2 . . . . 5 Track 12 | . 5 . 5 1 1 . . . . . Assimilate 3 | . . . . . . . . . . 3 Botnet 7 | . 2 . 2 . 1 . . . . 2 Fabricators . | . . . . . . . . . . . Repair Stations . | . . . . . . . . . . . Recycling Units 5 | . 2 . . 2 1 . . . . . Mask 5 | . 2 . . 2 1 . . . . . Scanalyzers . | . . . . . . . . . . . Garrison Access . | . . . . . . . . . . . Data Cores Recovered 2 | . . . . 1 . . . . . 1 Used . | . . . . . . . . . . . Hacking Detections 36 | . 8 . 9 8 8 . . . . 3 Full Trace Events 2 | . . . . 2 . . . . . . Feedback Events . | . . . . . . . . . . . Feedback Blocked . | . . . . . . . . . . . Robot Schematics Acquired 6 | . . . . . . . . 6 . . Robots Built . | . . . . . . . . . . . Matter . | . . . . . . . . . . . Time . | . . . . . . . . . . . Total Robot Build Rating . | . . . . . . . . . . . Part Schematics Acquired 10 | . 1 . 1 3 1 . . 3 . 1 Parts Built 3 | . . . . . 3 . . . . . Matter 657 | . . . . . 657 . . . . . Time 348 | . . . . . 348 . . . . . Total Part Build Rating 9 | . . . . . 9 . . . . . Parts Repaired 4 | . . . 2 2 . . . . . . Time 97 | . . . 39 58 . . . . . . Parts Recycled . | . . . . . . . . . . . Recycled Matter . | . . . . . . . . . . . Retrieved Matter . | . . . . . . . . . . . Retrieved Components . | . . . . . . . . . . . Parts Scanalyzed 5 | . . . 1 3 1 . . . . . Part Schematics Acquired 5 | . . . 1 3 1 . . . . . Parts Damaged . | . . . . . . . . . . . Bothacking | -11 -10 -10 -9 -8 -7 -7 -7 -7 -6 -6 ------------ Run | Scr Mat Min Mat Mat Fac Low Low Dat Pro Fac Used RIF Installer . | . . . . . . . . . . . Robots Hacked . | . . . . . . . . . . . Non-combat . | . . . . . . . . . . . Combat . | . . . . . . . . . . . Robot Hacks Applied . | . . . . . . . . . . . Relay Couplers Released . | . . . . . . . . . . . Robots Rewired . | . . . . . . . . . . . Allies Hacked . | . . . . . . . . . . . Hacks Repelled . | . . . . . . . . . . . Allies | -11 -10 -10 -9 -8 -7 -7 -7 -7 -6 -6 -------- Run | Scr Mat Min Mat Mat Fac Low Low Dat Pro Fac Total Allies 2 | . . 1 . . . . . . . 1 Largest Group 1 | . . 1 1 . . . . . . 1 Highest-Rated Group 31 | . . 31 31 . . . . . . 10 Highest-Rated Ally 31 | . . 31 31 . . . . . . 10 Total Orders 2 | . . . . . . . . . . 2 EXPLORE 2 | . . . . . . . . . . 2 Ally Attacks 2 | . . . 2 . . . . . . . Total Damage 20 | . . . 20 . . . . . . . Kills . | . . . . . . . . . . . Allies Corrupted . | . . . . . . . . . . . Allies Melted . | . . . . . . . . . . . Intel | -11 -10 -10 -9 -8 -7 -7 -7 -7 -6 -6 ------- Run | Scr Mat Min Mat Mat Fac Low Low Dat Pro Fac Robot Analysis Total 2 | . . . 2 . . . . . . . Derelict Logs Recovered 3 | . . 2 . . . . 1 . . . Drone Launches 2 | . . . . . . . . . . 2 Drone Recoveries . | . . . . . . . . . . . Exploration | -11 -10 -10 -9 -8 -7 -7 -7 -7 -6 -6 ------------- Run | Scr Mat Min Mat Mat Fac Low Low Dat Pro Fac Turns Passed 10894 | 33 1731 745 1673 3581 1199 119 150 74 913 676 Spaces Moved 7457 | 19 862 406 667 1433 2012 276 425 110 485 762 Core 39 | . . . . . . . . . 21 18 Treads 173 | . 171 . . 2 . . . . . . Legs 129 | 19 110 . . . . . . . . . Wheels 3297 | . 581 406 667 1431 212 . . . . . Hover . | . . . . . . . . . . . Flight 3819 | . . . . . 1800 276 425 110 464 744 Fastest Speed 26 | 120 110 130 175 135 26 26 26 26 26 26 Average Speed 103 | 120 163 153 184 205 38 26 27 26 51 31 Slowest Speed 260 | 120 260 175 215 252 145 26 96 26 250 250 Overloaded Moves . | . . . . . . . . . . . Propulsion Burnouts . | . . . . . . . . . . . Robots Hopped 26 | . . . . . 17 2 . 2 . 5 Cave-ins Triggered . | . . . . . . . . . . . Exploration Rate (%) 57 | 2 94 76 63 93 43 53 55 76 52 25 Regions Visited 10 Branch Regions 5 Pre-discovered Areas 2 | . . 1 . . . . . 1 . . Known Exits Taken 7 | . . . 1 1 1 1 1 1 1 . Unknown Exits Taken 3 | 1 1 1 . . . . . . . . Scrap Searched 4 | . . 1 . . . . 2 . 1 . Spaces Dug 76 | . . . . 6 31 3 5 3 13 15 Terrain Destroyed 172 | . . . . 87 31 3 5 3 28 15 Melee 64 | . . . . 6 31 3 3 3 7 11 Projectile 12 | . . . . . . . 2 . 6 4 AOE 96 | . . . . 81 . . . . 15 . Terrain Rammed . | . . . . . . . . . . . Walls Destroyed . | . . . . . . . . . . . Machines Disabled . | . . . . . . . . . . . Actions | -11 -10 -10 -9 -8 -7 -7 -7 -7 -6 -6 --------- Run | Scr Mat Min Mat Mat Fac Low Low Dat Pro Fac Total 9935 | 24 1108 475 982 1855 2359 310 441 137 1101 1143 Wait 1691 | . 154 21 163 155 261 26 2 13 573 323 Move 7396 | 18 861 405 666 1432 1977 272 424 105 484 752 Hop 25 | . . . . . 17 1 . 2 . 5 Pick Up 100 | 2 19 6 22 34 13 . . 2 . 2 Fast Attach 29 | 1 2 . 3 18 . . . . . 5 Attach 45 | . 2 3 7 11 10 1 1 . 4 6 Detach 14 | . 1 . 1 1 1 1 1 . 3 5 Swap 81 | . 10 4 12 16 17 4 2 5 2 9 Drop 115 | . 15 2 26 40 27 . . 2 . 3 Fire 342 | 3 44 34 82 141 4 . 8 . 21 5 Melee 97 | . . . . 7 32 5 3 8 14 28 Ram . | . . . . . . . . . . . Kick . | . . . . . . . . . . . Crush . | . . . . . . . . . . . Escape Stasis . | . . . . . . . . . . . Rewire . | . . . . . . . . . . . Trap . | . . . . . . . . . . . Miscellaneous . | . . . . . . . . . . . Route ------- -11/Scrapyard -10/Materials (discovered 4 exits: *Mat x3 / [*Min]) -10/Mines (discovered 2 exits: *Mat x2) -9/Materials (discovered 4 exits: *Mat x2 / *Min x2) -8/Materials (discovered 2 exits: *Fac x2) -7/Factory (discovered 6 exits: *Fac x2 / Sto x2 / *Low x2) -7/Lower Caves -7/Lower Caves (discovered 2 exits: *Fac / *Dat) -7/Data Miner -6/Proximity Caves -6/Factory (discovered 5 exits: *Fac / Low x2 / Ext x2) History --------- Turn | Location | Event 1 | -11/Scrapyard | Discovered new exit (range 3) 34 | -11/Scrapyard | Entered Materials 244 | -10/Materials | Discovered new exit (range 14) 317 | -10/Materials | Build established: Mutant 632 | -10/Materials | Discovered new exit (range 8) 749 | -10/Materials | Discovered new exit (range 15) 882 | -10/Materials | Central database locked down 1024 | -10/Materials | Discovered new exit (range 5) 1765 | -10/Materials | Entered Mines 1960 | -10/Mines | Discovered new exit (range 9) 2020 | -10/Mines | Lost 3 parts (1p1n1u) 2235 | -10/Mines | Discovered new exit (range 8) 2381 | -10/Mines | Learned 8 Materials zone layouts 2466 | -10/Mines | Received a Mining Laser from a helpful Derelict 2510 | -10/Mines | Entered Materials 2510 | -9/Materials | Accompanied by 1 ally 2510 | -9/Materials | Evolved 2 slots: Propulsion x1, Utility x1 2511 | -9/Materials | Identified exit to Materials 2511 | -9/Materials | Identified exit to Mines 3021 | -9/Materials | Build established: Scavenger-Mutant 3038 | -9/Materials | Repaired Lgt. Assault Rifle 3359 | -9/Materials | Build established: Mutant 3903 | -9/Materials | Repaired Lgt. Armor Plating 4183 | -9/Materials | Entered another Materials area 4183 | -8/Materials | Evolved 2 slots: Propulsion x1, Utility x1 4249 | -8/Materials | Garrison activated, responded to threat 4478 | -8/Materials | Lost 4 parts (1n2u1w) 4895 | -8/Materials | Repaired Mni. Grenade Launcher 5565 | -8/Materials | Discovered new exit (range 8) 5928 | -8/Materials | Repaired Huge Storage Unit 6179 | -8/Materials | Destroyed 7 combat bots 6480 | -8/Materials | Identified exit to Factory 6633 | -8/Materials | Discovered exit to Factory (range 11) 7764 | -8/Materials | Entered Factory 7764 | -7/Factory | Evolved 2 slots: Utility x2 7793 | -7/Factory | Identified exit to Storage 7793 | -7/Factory | Identified exit to Lower Caves 7986 | -7/Factory | Fabricated Imp. VTOL Module? 8232 | -7/Factory | Fabricated Imp. VTOL Module? 8283 | -7/Factory | Discovered new exit (range 10) 8286 | -7/Factory | Identified exit to Factory 8383 | -7/Factory | Fabricated Imp. VTOL Module (x1) 8432 | -7/Factory | Build established: Hacker-Scout 8477 | -7/Factory | Local fabrication network quarantined 8707 | -7/Factory | Discovered exit to Factory (range 4) 8963 | -7/Factory | Entered Lower Caves 9070 | -7/Lower Caves | Discovered new exit (range 12) 9077 | -7/Lower Caves | Identified exit to Lower Caves 9082 | -7/Lower Caves | Entered another Lower Caves area 9099 | -7/Lower Caves | Discovered exit to Factory (range 12) 9192 | -7/Lower Caves | Discovered new exit (range 9) 9194 | -7/Lower Caves | Identified exit to Data Miner 9208 | -7/Lower Caves | Learned Factory stockpile data 9232 | -7/Lower Caves | Entered Data Miner 9234 | -7/Data Miner | Discovered new exit (range 6) 9235 | -7/Data Miner | Identified exit to Proximity Caves 9248 | -7/Data Miner | Met Data Miner 9252 | -7/Data Miner | Learned location of Section 7 (-2) 9252 | -7/Data Miner | Acquired the access code to Warlord's prototype stash 9257 | -7/Data Miner | Received God Mode back door access code from Data Miner 9274 | -7/Data Miner | Data Conduit disabled 9306 | -7/Data Miner | Entered Proximity Caves 9306 | -6/Proximity Caves | Spotted B-75 Beast 9640 | -6/Proximity Caves | Build established: Hacker-Assassin 10131 | -6/Proximity Caves | Discovered exit to Factory (range 15) 10219 | -6/Proximity Caves | Entered Factory 10219 | -6/Factory | Evolved 2 slots: Utility x2 10563 | -6/Factory | Identified exit to Lower Caves 10563 | -6/Factory | Identified exit to Extension 10773 | -6/Factory | Discovered new exit (range 13) 10835 | -6/Factory | Identified exit to Factory 10847 | -6/Factory | Cargo convoy interrupted 10895 | -6/Factory | Self-destructed Last Messages --------------- 10786_ M-13 Machinist destroyed. 10788_ Acquired 24 matter. 10806_ Dropped Drone Bay. 10811_ Acquired System Shield. 10835_ EXIT=IDENTIFIED: FACTORY 10840_ >> Machine Analyzer network decryption results: 10840_ Recycling Unit x1 10847_ ALERT: Cargo convoy interrupted, dispatching reinforcements. 10848_ Critical hit (Burn: +37). 10855_ Sneak attack on K-01 Serf. 10855_ K-01 Serf destroyed. 10857_ Acquired 13 matter. 10861_ Acquired Lgt. Ion Engine. 10864_ Connecting with Terminal... 10872_ U-05 Engineer builds a Wall. 10879_ S-27 Virus destroyed. 10882_ Hacking Suite destroyed. 10887_ S-27 Virus destroyed. 10893_ Imp. VTOL Module destroyed. 10894_ Chainsword destroyed. Map ----- +----------------------------------------------------+ | ?????????????????????????????????????????? ??????? | | ?????????????????????????????????????????? ??????# | | ?????????????????????????????????????????? ####### | | ?????????????????????????????????????????# | | ?????????????????????????????????????????? ####### | | ????????????????????????????????????????## ##????# | | ????????????????????????????????????????# ###### | | ????????????????????????????????????????? | | ????????????????????????????????????????? * ###### | | ?????????????????????? ???????????????# #?????# | | ????????????????????# ???????????????# #?????# | | ????????????????????# ??????????????## ##????# | | ????????????????????# #?????######### ###### | | ????????????????????# #?# | | ????????????????????+ #?? #########] ## ### | | ????????????????????# #?# ############## #?# | | ????????????????????# #?# ## #?# #?# | | ????????????????????# ### ## !#?# #?? | | ????????????????????# # """ ### ### | | ????????????????????? # """ + + | | ????????????????????? # """ !!! # # | | ?????????????????????? + !! # # | | ???????????????????????% = # !! + + | | ?????????????????#######s### # ###### | | ?????????????????# *%= # ####+######????# | | ?????????????????# @ # #???????# | | ?????????????????# ^ s# #???????#! | | ?????????????????# s/ #???????# | | ?????????????????# s# #???????# | | ?????????????????# # #???????# | | ?????????????????# ^ ####### ######### | | ?????????????????# #?????# ########## | | ?????????????????###########?????# | | ????????????????????????????????## | | ????????????????????????????????## | | ????????????????????????????????## | | ?????????????????????????????????# | | ?????????????????????????????????# | | ?????????????????????????????????# | | ?????????????????????????????????# ######### | | ?????????????????????????????????# # | | ?????????????????????????????????# # """ " | | ?????????????????????????????????# # """ " | | ?????????????????????????????????# # """ " | | ?????????????????????????????????# # | | ?????????????????????????????????+ + " | | ?????????????????????????????????# # "" " | | ?????????????????????????????????# # "" " | | ?????????????????????????????????# # "T | | ?????????????????????????????????# # "" | +----------------------------------------------------+ Best States ------------- Heat Dissipation 51 Coolant Potential 65 Energy Generation 14 Energy Capacity 250 Matter Stores 300 Matter Capacity 300 Sight Range 16 Robot Scan Range 16 Terrain Scan Density 10 Armor Coverage 450 Core Shielding 20 Propulsion Shielding 66 Evasion (%) 64 Recoil Reduction 4 Offensive Hacking 30 Defensive Hacking 10 Item Schematics ----------------- Hcp. Storage Unit | -10/Materials | Hacked Lgt. Armor Plating | -9/Materials | Scanalyzed Hacking Suite | -8/Materials | Scanalyzed Imp. Sensor Array | -8/Materials | Scanalyzed Imp. VTOL Module | -8/Materials | Scanalyzed Machine Analyzer | -7/Factory | Scanalyzed Combat Drone Bay | -7/Data Miner | Free Lgt. Regenerative Plating | -7/Data Miner | Free Exp. Cesium-ion Thruster | -7/Data Miner | Free Adv. Hacking Suite | -6/Factory | Hacked Robot Schematics ------------------ S-27 Virus | -7/Data Miner | Free G-50 Soldier | -7/Data Miner | Free H-66 Slayer | -7/Data Miner | Free P-70 Sage | -7/Data Miner | Free I-36 Angel | -7/Data Miner | Free I-47 Archangel | -7/Data Miner | Free Fabricated ------------ Imp. VTOL Module | x1 | -7/Factory Imp. VTOL Module | x1 | -7/Factory Imp. VTOL Module | x1 | -7/Factory Alien Tech Used ----------------- None Achievements -------------- None Challenges ------------ None Game ------ Seed CompactGuidanceDoublenader Manual? 0 Play Time 03:10:11 Cumulative 1190.2 hours Start 2021.09.18 @ 07:03:23 End 2021.09.18 @ 15:14:46 Sessions 7 Manual Loads 0 Difficulty Rogue Special Mode None Game No. 328 Rogue 328 Adventurer 0 Explorer 0 Win Type - Total 41 Types 25/6/7/3/0/0/0/0/0 Lore% 81 Gallery% 86 Achievement% 73 Wizard Run 0 Options --------- ASCII 0 Keyboard 1 Movement Numpad Keybinds 0 Fullscreen 1 Font 24/Smallcaps Map View 76x50 Tactical HUD 1 Map Filters NONE Filters NONE Steam 1 RUN: d392e6d9-50df-4be7-8d0c-21788ee8992b